[Event "*** Titled Tuesday Blitz"]
[Site "Chess.com"]
[Date "2020.05.05"]
[Round "6"]
[White "Balla_Tamas"]
[Black "Gerasimenyuk_Miha"]
[Result "1-0"]
[WhiteElo "2566"]
[BlackElo "2356"]
[TimeControl "180+1"]
[EndTime "11:08:01 PDT"]
[Termination "Balla_Tamas won by resignation"]

1. e4 {[%clk 0:03:00.9]} 1... c6 {[%clk 0:02:59.9]} 2. d4 {[%clk 0:03:00.2]}
2... d5 {[%clk 0:03:00.8]} 3. exd5 {[%clk 0:03:00.1]} 3... Qxd5 {[%clk
0:02:59.9]} 4. c4 {[%clk 0:02:51.8]} 4... Qa5+ {[%clk 0:02:58.9]} 5. Nc3 {[%clk
0:02:50.7]} 5... Nf6 {[%clk 0:02:58.6]} 6. Bd3 {[%clk 0:02:48.9]} 6... Bg4
{[%clk 0:02:58.4]} 7. Nf3 {[%clk 0:02:46]} 7... e6 {[%clk 0:02:57.7]} 8. h3
{[%clk 0:02:45.5]} 8... Qh5 {[%clk 0:02:53.1]} 9. Be2 {[%clk 0:02:42.1]} 9...
Nbd7 {[%clk 0:02:51.9]} 10. O-O {[%clk 0:02:41.4]} 10... Bd6 {[%clk 0:02:51.7]}
11. hxg4 {[%clk 0:02:16.8]} 11... Nxg4 {[%clk 0:02:52.6]} 12. g3 {[%clk
0:02:17.1]} 12... Qh3 {[%clk 0:02:48.7]} 13. Ne4 {[%clk 0:02:14]} 13... Bc7
{[%clk 0:02:40.3]} 14. Neg5 {[%clk 0:02:07.4]} 14... Qh5 {[%clk 0:02:37.7]} 15.
Nh4 {[%clk 0:02:06.6]} 15... Ndf6 {[%clk 0:02:30.3]} 16. Ne4 {[%clk 0:01:30.7]}
16... Rg8 {[%clk 0:01:57.3]} 17. Kg2 {[%clk 0:01:22.4]} 17... O-O-O {[%clk
0:01:55.1]} 18. Rh1 {[%clk 0:01:20.8]} 18... Nxe4 {[%clk 0:01:49.2]} 19. Bxg4
{[%clk 0:01:19.8]} 19... Qa5 {[%clk 0:01:48.5]} 20. Be3 {[%clk 0:01:17.2]} 20...
f5 {[%clk 0:01:40.1]} 21. Be2 {[%clk 0:01:10.8]} 21... g5 {[%clk 0:01:38]} 22.
Nf3 {[%clk 0:01:10.6]} 22... f4 {[%clk 0:01:38.2]} 23. Bd3 {[%clk 0:01:07.1]}
23... g4 {[%clk 0:01:04.5]} 24. Bxe4 {[%clk 0:01:02.6]} 24... gxf3+ {[%clk
0:01:03.4]} 25. Bxf3 {[%clk 0:00:45.2]} 25... fxe3 {[%clk 0:01:04.3]} 26. Bg4
{[%clk 0:00:38.8]} 26... exf2 {[%clk 0:01:03.3]} 27. Bxe6+ {[%clk 0:00:38.4]}
27... Kb8 {[%clk 0:01:02.5]} 28. Bxg8 {[%clk 0:00:38.3]} 28... Rxg8 {[%clk
0:01:02.4]} 29. Rh3 {[%clk 0:00:38.7]} 29... Rf8 {[%clk 0:00:51]} 30. Qe2 {[%clk
0:00:38.5]} 30... Qf5 {[%clk 0:00:45.7]} 31. Rf1 {[%clk 0:00:37.5]} 31... Qd7
{[%clk 0:00:41.6]} 32. Rxf2 {[%clk 0:00:36.8]} 32... Re8 {[%clk 0:00:41.4]} 33.
Qd3 {[%clk 0:00:36.7]} 33... Rg8 {[%clk 0:00:38]} 34. b3 {[%clk 0:00:35.2]}
34... a6 {[%clk 0:00:37.2]} 35. Re2 {[%clk 0:00:34.4]} 35... h5 {[%clk
0:00:35.9]} 36. Qe4 {[%clk 0:00:34.2]} 36... Ka7 {[%clk 0:00:29.2]} 37. Qe6
{[%clk 0:00:33.4]} 37... Qg7 {[%clk 0:00:25]} 38. Qe3 {[%clk 0:00:32.1]} 38...
Qg4 {[%clk 0:00:21.4]} 39. d5+ {[%clk 0:00:30.8]} 39... Bb6 {[%clk 0:00:19.3]}
40. Qf3 {[%clk 0:00:30.7]} 40... Qd4 {[%clk 0:00:17.3]} 41. Rh1 {[%clk
0:00:27.1]} 41... h4 {[%clk 0:00:16.1]} 42. Rxh4 {[%clk 0:00:20.6]} 42... Qg1+
{[%clk 0:00:14.2]} 43. Kh3 {[%clk 0:00:21.2]} 43... Rxg3+ {[%clk 0:00:14]} 44.
Qxg3 {[%clk 0:00:20.3]} 44... Qh1+ {[%clk 0:00:12.6]} 45. Kg4 {[%clk 0:00:19.5]}
45... Qd1 {[%clk 0:00:12.4]} 46. Qf3 {[%clk 0:00:18.9]} 46... Qg1+ {[%clk
0:00:12.2]} 47. Rg2 {[%clk 0:00:18.5]} 47... Qd4+ {[%clk 0:00:11.4]} 48. Kh3
{[%clk 0:00:19]} 48... c5 {[%clk 0:00:11.5]} 49. Rxd4 {[%clk 0:00:18.1]} 1-0

[Event "*** Titled Tuesday Blitz"]
[Site "Chess.com"]
[Date "2020.05.05"]
[Round "6"]
[White "AnishGiri"]
[Black "ChessWarrior7197"]
[Result "0-1"]
[WhiteElo "3047"]
[BlackElo "2874"]
[TimeControl "180+1"]
[EndTime "11:08:02 PDT"]
[Termination "ChessWarrior7197 won on time"]

1. e4 {[%clk 0:03:00.9]} 1... c5 {[%clk 0:02:59.8]} 2. Nf3 {[%clk 0:03:01.2]}
2... d6 {[%clk 0:03:00.3]} 3. d4 {[%clk 0:03:01.4]} 3... cxd4 {[%clk 0:03:01.2]}
4. Nxd4 {[%clk 0:03:01.6]} 4... Nf6 {[%clk 0:03:01.6]} 5. Nc3 {[%clk 0:03:02]}
5... a6 {[%clk 0:03:02.2]} 6. Bg5 {[%clk 0:03:02.4]} 6... e6 {[%clk 0:03:02.2]}
7. f4 {[%clk 0:03:02.3]} 7... h6 {[%clk 0:03:02.7]} 8. Bh4 {[%clk 0:03:01.1]}
8... Qb6 {[%clk 0:03:02.8]} 9. a3 {[%clk 0:03:01.2]} 9... Be7 {[%clk 0:03:01.8]}
10. Bf2 {[%clk 0:03:01.3]} 10... Qc7 {[%clk 0:03:01.8]} 11. Qf3 {[%clk
0:03:01.8]} 11... Nbd7 {[%clk 0:03:01.9]} 12. O-O-O {[%clk 0:03:01.7]} 12... b5
{[%clk 0:03:02.1]} 13. g4 {[%clk 0:02:59.3]} 13... Bb7 {[%clk 0:02:48.1]} 14. h4
{[%clk 0:02:49.5]} 14... Nc5 {[%clk 0:02:47.9]} 15. Bd3 {[%clk 0:02:49]} 15...
d5 {[%clk 0:02:48.2]} 16. e5 {[%clk 0:02:48.6]} 16... Nfe4 {[%clk 0:02:48.5]}
17. Bxe4 {[%clk 0:02:42.8]} 17... Nxe4 {[%clk 0:02:47.4]} 18. Rh3 {[%clk
0:02:22.4]} 18... Rc8 {[%clk 0:02:40.2]} 19. Be1 {[%clk 0:02:17.1]} 19... Qb6
{[%clk 0:02:39.9]} 20. Qe2 {[%clk 0:02:13]} 20... Rc4 {[%clk 0:02:22.2]} 21.
Rhd3 {[%clk 0:01:56.4]} 21... Nc5 {[%clk 0:01:55.1]} 22. Rf3 {[%clk 0:01:02.3]}
22... Ne4 {[%clk 0:01:50.4]} 23. Qe3 {[%clk 0:00:42.6]} 23... b4 {[%clk
0:01:45]} 24. axb4 {[%clk 0:00:40.4]} 24... Bxb4 {[%clk 0:01:42.2]} 25. Nxe4
{[%clk 0:00:24]} 25... dxe4 {[%clk 0:01:40.2]} 26. Rf1 {[%clk 0:00:21.8]} 26...
Bxe1 {[%clk 0:01:38.2]} 27. Rfxe1 {[%clk 0:00:22.2]} 27... O-O {[%clk
0:01:37.9]} 28. f5 {[%clk 0:00:20.5]} 28... Bd5 {[%clk 0:01:33.5]} 29. f6 {[%clk
0:00:20.4]} 29... Rfc8 {[%clk 0:01:25.3]} 30. fxg7 {[%clk 0:00:17.8]} 30... Qc7
{[%clk 0:01:15.9]} 31. c3 {[%clk 0:00:07.9]} 31... Qxe5 {[%clk 0:01:15.2]} 32.
Qxh6 {[%clk 0:00:08.3]} 32... Qxg7 {[%clk 0:01:08.4]} 33. Qxg7+ {[%clk
0:00:08.7]} 33... Kxg7 {[%clk 0:01:09.3]} 34. Nc2 {[%clk 0:00:09.2]} 34... R4c5
{[%clk 0:01:00.5]} 35. Ne3 {[%clk 0:00:09.2]} 35... Bc6 {[%clk 0:01:00.6]} 36.
Rf1 {[%clk 0:00:07.3]} 36... Rc7 {[%clk 0:00:59.3]} 37. Rd8 {[%clk 0:00:06.8]}
37... Bb5 {[%clk 0:00:57]} 38. Rf2 {[%clk 0:00:05.2]} 38... a5 {[%clk 0:00:57]}
39. g5 {[%clk 0:00:05.5]} 39... a4 {[%clk 0:00:54.2]} 40. Ng4 {[%clk 0:00:05.3]}
40... a3 {[%clk 0:00:51.4]} 41. Nf6 {[%clk 0:00:05.8]} 41... Rc8 {[%clk
0:00:44.7]} 42. Rxc8 {[%clk 0:00:05.6]} 42... Rxc8 {[%clk 0:00:44.6]} 43. bxa3
{[%clk 0:00:04.3]} 43... Rxc3+ {[%clk 0:00:43.8]} 44. Kb2 {[%clk 0:00:04.9]}
44... e3 {[%clk 0:00:42.9]} 45. Rh2 {[%clk 0:00:02.1]} 45... Rd3 {[%clk
0:00:42.1]} 46. Kc2 {[%clk 0:00:02.2]} 46... Rxa3 {[%clk 0:00:42.1]} 47. Rh1
{[%clk 0:00:01.2]} 47... e2 {[%clk 0:00:40.9]} 48. Kd2 {[%clk 0:00:01.3]} 48...
Rd3+ {[%clk 0:00:37.7]} 49. Kc2 {[%clk 0:00:01.6]} 49... Rd1 {[%clk 0:00:37.1]}
50. Nh5+ {[%clk 0:00:01.9]} 50... Kf8 {[%clk 0:00:36.6]} 0-1

[Event "*** Titled Tuesday Blitz"]
[Site "Chess.com"]
[Date "2020.05.05"]
[Round "6"]
[White "Dinamo81"]
[Black "Korona_91"]
[Result "0-1"]
[WhiteElo "2640"]
[BlackElo "2463"]
[TimeControl "180+1"]
[EndTime "11:08:03 PDT"]
[Termination "Korona_91 won by resignation"]

1. d4 {[%clk 0:03:00.9]} 1... g6 {[%clk 0:02:55.7]} 2. e4 {[%clk 0:02:59.3]}
2... Bg7 {[%clk 0:02:52.2]} 3. Nc3 {[%clk 0:02:59.3]} 3... d6 {[%clk 0:02:51.9]}
4. Be3 {[%clk 0:02:57.6]} 4... Nd7 {[%clk 0:02:50.8]} 5. Qd2 {[%clk 0:02:56.2]}
5... c6 {[%clk 0:02:50.4]} 6. Nf3 {[%clk 0:02:52.6]} 6... Ngf6 {[%clk
0:02:48.6]} 7. h3 {[%clk 0:02:51.3]} 7... Qc7 {[%clk 0:02:45.9]} 8. Bd3 {[%clk
0:02:49.9]} 8... b5 {[%clk 0:02:46.1]} 9. O-O {[%clk 0:02:49.1]} 9... Bb7 {[%clk
0:02:46.2]} 10. a4 {[%clk 0:02:46.6]} 10... a6 {[%clk 0:02:43.5]} 11. Rfe1
{[%clk 0:02:39.6]} 11... O-O {[%clk 0:02:43.2]} 12. Bh6 {[%clk 0:02:18.5]} 12...
e5 {[%clk 0:02:38.1]} 13. dxe5 {[%clk 0:02:16.1]} 13... dxe5 {[%clk 0:02:27.3]}
14. Be3 {[%clk 0:02:07.7]} 14... Rad8 {[%clk 0:02:25.5]} 15. Qe2 {[%clk
0:01:59.7]} 15... Nh5 {[%clk 0:02:05.8]} 16. g3 {[%clk 0:01:58.3]} 16... b4
{[%clk 0:01:59.9]} 17. Nb1 {[%clk 0:01:56.3]} 17... c5 {[%clk 0:02:00.2]} 18.
Nbd2 {[%clk 0:01:54.9]} 18... a5 {[%clk 0:01:56.7]} 19. Nc4 {[%clk 0:01:51.7]}
19... f5 {[%clk 0:01:48.2]} 20. Bg5 {[%clk 0:01:45.9]} 20... Rde8 {[%clk
0:01:45.5]} 21. Rad1 {[%clk 0:01:44]} 21... h6 {[%clk 0:01:42]} 22. Bc1 {[%clk
0:01:27.1]} 22... Ndf6 {[%clk 0:01:32]} 23. Nd6 {[%clk 0:01:26.2]} 23... fxe4
{[%clk 0:01:27.3]} 24. Nxe4 {[%clk 0:01:21.5]} 24... Nxe4 {[%clk 0:01:21.7]} 25.
Bxe4 {[%clk 0:01:22.4]} 25... Bxe4 {[%clk 0:01:20.5]} 26. Qxe4 {[%clk
0:01:23.3]} 26... Qf7 {[%clk 0:01:20.9]} 27. Kg2 {[%clk 0:01:19.6]} 27... Nf6
{[%clk 0:01:16.8]} 28. Qe2 {[%clk 0:01:16.8]} 28... e4 {[%clk 0:01:16]} 29. Nh2
{[%clk 0:01:16.6]} 29... h5 {[%clk 0:01:03.8]} 30. Be3 {[%clk 0:01:13.9]} 30...
Re5 {[%clk 0:01:01.4]} 31. Nf1 {[%clk 0:00:59.8]} 31... Rf5 {[%clk 0:00:59.9]}
32. Rd2 {[%clk 0:00:55.7]} 32... Nd5 {[%clk 0:00:58.5]} 33. Red1 {[%clk
0:00:55.5]} 33... Nxe3+ {[%clk 0:00:53.7]} 34. Nxe3 {[%clk 0:00:56.4]} 34... Rf3
{[%clk 0:00:54.2]} 35. Rf1 {[%clk 0:00:49.3]} 35... Bd4 {[%clk 0:00:50.3]} 36.
Nd1 {[%clk 0:00:45.7]} 36... e3 {[%clk 0:00:45.7]} 37. Rd3 {[%clk 0:00:46]}
37... Qd5 {[%clk 0:00:38.8]} 38. Kh2 {[%clk 0:00:45.5]} 38... c4 {[%clk
0:00:35.6]} 39. Rxd4 {[%clk 0:00:34.6]} 39... Qxd4 {[%clk 0:00:34]} 40. Nxe3
{[%clk 0:00:34.6]} 40... Qxe3 {[%clk 0:00:28.8]} 41. fxe3 {[%clk 0:00:32.7]}
41... Rxf1 {[%clk 0:00:29.2]} 42. Qxc4+ {[%clk 0:00:33]} 42... Kh7 {[%clk
0:00:28.4]} 43. g4 {[%clk 0:00:20.3]} 43... h4 {[%clk 0:00:28.5]} 0-1

[Event "*** Titled Tuesday Blitz"]
[Site "Chess.com"]
[Date "2020.05.05"]
[Round "6"]
[White "salomez"]
[Black "mortngabriel"]
[Result "1-0"]
[WhiteElo "2242"]
[BlackElo "2440"]
[TimeControl "180+1"]
[EndTime "11:08:03 PDT"]
[Termination "salomez won on time"]

1. e4 {[%clk 0:03:00.9]} 1... c5 {[%clk 0:02:59.5]} 2. Nf3 {[%clk 0:02:57.4]}
2... a6 {[%clk 0:02:59.5]} 3. c3 {[%clk 0:02:54.9]} 3... g6 {[%clk 0:02:52.8]}
4. Bc4 {[%clk 0:02:49.5]} 4... Bg7 {[%clk 0:02:49.2]} 5. d4 {[%clk 0:02:46.4]}
5... cxd4 {[%clk 0:02:48.5]} 6. cxd4 {[%clk 0:02:43]} 6... d5 {[%clk 0:02:39.9]}
7. Bxd5 {[%clk 0:02:40.5]} 7... Nf6 {[%clk 0:02:39.5]} 8. Bb3 {[%clk 0:02:36.8]}
8... Nxe4 {[%clk 0:02:38.4]} 9. Nc3 {[%clk 0:02:33.1]} 9... Nxc3 {[%clk
0:02:37.6]} 10. bxc3 {[%clk 0:02:31.8]} 10... O-O {[%clk 0:02:38.5]} 11. O-O
{[%clk 0:02:31.4]} 11... Nc6 {[%clk 0:02:34.5]} 12. Re1 {[%clk 0:02:30.5]} 12...
Na5 {[%clk 0:02:17.6]} 13. Bg5 {[%clk 0:02:25]} 13... Re8 {[%clk 0:02:09.5]} 14.
h3 {[%clk 0:01:58.1]} 14... b5 {[%clk 0:02:06.5]} 15. Bh4 {[%clk 0:01:47.7]}
15... Nxb3 {[%clk 0:01:44.4]} 16. Qxb3 {[%clk 0:01:36.2]} 16... Bb7 {[%clk
0:01:41]} 17. Ne5 {[%clk 0:01:30.1]} 17... Qd5 {[%clk 0:01:27.1]} 18. Qxd5
{[%clk 0:01:25]} 18... Bxd5 {[%clk 0:01:28]} 19. a4 {[%clk 0:01:24]} 19... Rac8
{[%clk 0:01:17.8]} 20. axb5 {[%clk 0:01:22.8]} 20... axb5 {[%clk 0:01:18.7]} 21.
Ra3 {[%clk 0:01:15.9]} 21... Rc7 {[%clk 0:00:57.7]} 22. Nd3 {[%clk 0:01:09.8]}
22... e6 {[%clk 0:00:47.9]} 23. Nc5 {[%clk 0:01:08.6]} 23... Bf8 {[%clk
0:00:46.8]} 24. Bf6 {[%clk 0:00:52.3]} 24... Rec8 {[%clk 0:00:40.8]} 25. Ra5
{[%clk 0:00:44.9]} 25... Bc4 {[%clk 0:00:40.2]} 26. Rea1 {[%clk 0:00:41.2]}
26... Bg7 {[%clk 0:00:39.1]} 27. Bxg7 {[%clk 0:00:39.6]} 27... Kxg7 {[%clk
0:00:40]} 28. Ra7 {[%clk 0:00:36.7]} 28... h5 {[%clk 0:00:38.4]} 29. f4 {[%clk
0:00:35.6]} 29... h4 {[%clk 0:00:37.9]} 30. Kf2 {[%clk 0:00:35.4]} 30... Kf6
{[%clk 0:00:37.7]} 31. Ke3 {[%clk 0:00:35.7]} 31... Bd5 {[%clk 0:00:34.4]} 32.
Kf2 {[%clk 0:00:30.6]} 32... Kf5 {[%clk 0:00:23.5]} 33. R7a5 {[%clk 0:00:29]}
33... Bc4 {[%clk 0:00:15.4]} 34. Ke3 {[%clk 0:00:27.9]} 34... Rc6 {[%clk
0:00:08.3]} 35. Rb1 {[%clk 0:00:25.8]} 35... Rb6 {[%clk 0:00:07.1]} 36. Rb4
{[%clk 0:00:22.6]} 36... Rc7 {[%clk 0:00:05]} 37. Rxc4 {[%clk 0:00:20.5]} 37...
bxc4 {[%clk 0:00:03.6]} 38. Nd7+ {[%clk 0:00:19.8]} 1-0

[Event "*** Titled Tuesday Blitz"]
[Site "Chess.com"]
[Date "2020.05.05"]
[Round "6"]
[White "Paladin61"]
[Black "Anton_Demchenko"]
[Result "0-1"]
[WhiteElo "2657"]
[BlackElo "2849"]
[TimeControl "180+1"]
[EndTime "11:08:05 PDT"]
[Termination "Anton_Demchenko won on time"]

1. d4 {[%clk 0:03:00.9]} 1... Nf6 {[%clk 0:02:59.7]} 2. c4 {[%clk 0:03:01.1]}
2... d6 {[%clk 0:03:00.3]} 3. Nf3 {[%clk 0:03:00.1]} 3... Nc6 {[%clk 0:03:00.4]}
4. Nc3 {[%clk 0:02:40.8]} 4... e5 {[%clk 0:03:00.2]} 5. g3 {[%clk 0:02:34.9]}
5... Be7 {[%clk 0:03:00]} 6. Bg2 {[%clk 0:02:33.6]} 6... O-O {[%clk 0:03:00.4]}
7. O-O {[%clk 0:02:32.4]} 7... a5 {[%clk 0:02:59.9]} 8. h3 {[%clk 0:02:28.1]}
8... Bf5 {[%clk 0:02:59.6]} 9. Nh4 {[%clk 0:01:52.8]} 9... Bd7 {[%clk
0:02:58.2]} 10. e3 {[%clk 0:01:46]} 10... Re8 {[%clk 0:02:14.5]} 11. b3 {[%clk
0:01:42.5]} 11... Qc8 {[%clk 0:02:05.6]} 12. Kh2 {[%clk 0:01:41.4]} 12... h6
{[%clk 0:01:57.2]} 13. Nf3 {[%clk 0:01:27.9]} 13... Bf8 {[%clk 0:01:51.3]} 14.
a3 {[%clk 0:01:26.4]} 14... exd4 {[%clk 0:01:48.2]} 15. exd4 {[%clk 0:01:14.5]}
15... Bf5 {[%clk 0:01:48.3]} 16. Bb2 {[%clk 0:01:09.6]} 16... Ne4 {[%clk
0:01:28.4]} 17. d5 {[%clk 0:01:03.6]} 17... Ne5 {[%clk 0:01:12.6]} 18. Nxe5
{[%clk 0:00:59.9]} 18... Nxc3 {[%clk 0:01:12.8]} 19. Bxc3 {[%clk 0:00:59.4]}
19... dxe5 {[%clk 0:01:13.7]} 20. b4 {[%clk 0:00:49.7]} 20... axb4 {[%clk
0:00:59.9]} 21. axb4 {[%clk 0:00:49.2]} 21... Rxa1 {[%clk 0:01:00.8]} 22. Qxa1
{[%clk 0:00:48.9]} 22... e4 {[%clk 0:01:01.7]} 23. c5 {[%clk 0:00:36.6]} 23...
b6 {[%clk 0:00:53]} 24. Rd1 {[%clk 0:00:28.2]} 24... bxc5 {[%clk 0:00:48.2]} 25.
bxc5 {[%clk 0:00:28.2]} 25... e3 {[%clk 0:00:42.1]} 26. fxe3 {[%clk 0:00:28.1]}
26... Rxe3 {[%clk 0:00:42.3]} 27. Bd4 {[%clk 0:00:24.3]} 27... Re2 {[%clk
0:00:42.4]} 28. Re1 {[%clk 0:00:20.8]} 28... Rxg2+ {[%clk 0:00:34.9]} 29. Kxg2
{[%clk 0:00:20.4]} 29... Bxh3+ {[%clk 0:00:35.8]} 30. Kh2 {[%clk 0:00:20.7]}
30... Bf5 {[%clk 0:00:34]} 31. Qc3 {[%clk 0:00:16.5]} 31... Qa8 {[%clk
0:00:31.9]} 32. Qf3 {[%clk 0:00:10.8]} 32... Bg6 {[%clk 0:00:27.7]} 33. Kg1
{[%clk 0:00:08.6]} 33... Qa4 {[%clk 0:00:27.1]} 34. Bf2 {[%clk 0:00:08.1]} 34...
Qc4 {[%clk 0:00:26.5]} 35. d6 {[%clk 0:00:04.4]} 35... cxd6 {[%clk 0:00:26.1]}
36. cxd6 {[%clk 0:00:02.9]} 36... Bxd6 {[%clk 0:00:25.7]} 37. Qe2 {[%clk
0:00:02.7]} 37... Qc7 {[%clk 0:00:23.6]} 38. Qf3 {[%clk 0:00:02.5]} 38... Kh7
{[%clk 0:00:24.1]} 39. Qe3 {[%clk 0:00:02.8]} 39... Bb4 {[%clk 0:00:21.4]} 40.
Rd1 {[%clk 0:00:02.2]} 40... Be7 {[%clk 0:00:16.1]} 41. Rc1 {[%clk 0:00:03.1]}
41... Qd7 {[%clk 0:00:15.7]} 42. Qe2 {[%clk 0:00:02.4]} 42... Bg5 {[%clk
0:00:15.4]} 43. Rd1 {[%clk 0:00:01.9]} 43... Qh3 {[%clk 0:00:15.7]} 44. Re1
{[%clk 0:00:02.3]} 44... Qd7 {[%clk 0:00:14.3]} 45. Qf3 {[%clk 0:00:02.4]} 45...
Qa4 {[%clk 0:00:13.9]} 46. Qe3 {[%clk 0:00:02.3]} 46... Bxe3 {[%clk 0:00:13.4]}
0-1

[Event "*** Titled Tuesday Blitz"]
[Site "Chess.com"]
[Date "2020.05.05"]
[Round "6"]
[White "Riptide27"]
[Black "Gulkov_Igor"]
[Result "1/2-1/2"]
[WhiteElo "2530"]
[BlackElo "2406"]
[TimeControl "180+1"]
[EndTime "11:08:06 PDT"]
[Termination "Game drawn - insufficient material"]

1. d4 {[%clk 0:03:00.9]} 1... Nf6 {[%clk 0:02:56.6]} 2. c4 {[%clk 0:03:00.2]}
2... e6 {[%clk 0:02:55.9]} 3. Nc3 {[%clk 0:02:58.9]} 3... Bb4 {[%clk 0:02:55.7]}
4. e3 {[%clk 0:02:59]} 4... O-O {[%clk 0:02:54.8]} 5. Bd2 {[%clk 0:02:58.9]}
5... d5 {[%clk 0:02:54.5]} 6. Nf3 {[%clk 0:02:57.8]} 6... c5 {[%clk 0:02:54.1]}
7. a3 {[%clk 0:02:56.3]} 7... Bxc3 {[%clk 0:02:53.7]} 8. Bxc3 {[%clk 0:02:56.7]}
8... cxd4 {[%clk 0:02:53.1]} 9. Nxd4 {[%clk 0:02:50.6]} 9... Nc6 {[%clk
0:02:51.8]} 10. cxd5 {[%clk 0:02:47.1]} 10... Nxd5 {[%clk 0:02:46.3]} 11. Nxc6
{[%clk 0:02:46.4]} 11... bxc6 {[%clk 0:02:45.5]} 12. Bd4 {[%clk 0:02:45.5]}
12... Ba6 {[%clk 0:02:43.5]} 13. Bxa6 {[%clk 0:02:37.9]} 13... Qa5+ {[%clk
0:02:42.7]} 14. b4 {[%clk 0:02:32.6]} 14... Qxa6 {[%clk 0:02:42.3]} 15. Qe2
{[%clk 0:02:33.2]} 15... Qb5 {[%clk 0:02:33.6]} 16. Bc5 {[%clk 0:02:19.7]} 16...
Rfb8 {[%clk 0:02:26]} 17. Bd6 {[%clk 0:01:44.8]} 17... Rb7 {[%clk 0:02:10.5]}
18. Qxb5 {[%clk 0:01:38.9]} 18... cxb5 {[%clk 0:02:07.2]} 19. O-O {[%clk
0:01:34.7]} 19... Nb6 {[%clk 0:01:38.1]} 20. Rfd1 {[%clk 0:01:19.8]} 20... Nc4
{[%clk 0:01:37.7]} 21. Bc5 {[%clk 0:01:18]} 21... Rc8 {[%clk 0:01:34.4]} 22. Rd4
{[%clk 0:01:08.4]} 22... f6 {[%clk 0:01:32.7]} 23. a4 {[%clk 0:00:59.2]} 23...
a6 {[%clk 0:01:32.1]} 24. axb5 {[%clk 0:00:58.3]} 24... axb5 {[%clk 0:01:31.8]}
25. g3 {[%clk 0:00:47]} 25... Kf7 {[%clk 0:01:31.1]} 26. Kg2 {[%clk 0:00:44.5]}
26... e5 {[%clk 0:01:28.7]} 27. Rdd1 {[%clk 0:00:38.9]} 27... h5 {[%clk
0:01:28.2]} 28. e4 {[%clk 0:00:37.8]} 28... Kg6 {[%clk 0:01:22.2]} 29. Rd5
{[%clk 0:00:34.7]} 29... Kf7 {[%clk 0:01:20.3]} 30. Ra6 {[%clk 0:00:30.5]} 30...
Rcc7 {[%clk 0:01:14.4]} 31. h4 {[%clk 0:00:30.8]} 31... Rc8 {[%clk 0:01:12]} 32.
Kf3 {[%clk 0:00:30.8]} 32... Nb2 {[%clk 0:01:07.4]} 33. Ke2 {[%clk 0:00:30.3]}
33... Na4 {[%clk 0:01:07.3]} 34. Kd3 {[%clk 0:00:26.6]} 34... Nb2+ {[%clk
0:01:01]} 35. Kc2 {[%clk 0:00:23.7]} 35... Nc4 {[%clk 0:01:01]} 36. Kb3 {[%clk
0:00:22.8]} 36... Rcc7 {[%clk 0:01:00.7]} 37. f4 {[%clk 0:00:21.4]} 37... exf4
{[%clk 0:01:00.4]} 38. gxf4 {[%clk 0:00:21]} 38... Rd7 {[%clk 0:01:00.1]} 39.
Rxd7+ {[%clk 0:00:19.4]} 39... Rxd7 {[%clk 0:00:59.9]} 40. Ra7 {[%clk
0:00:18.4]} 40... Rxa7 {[%clk 0:00:58.8]} 41. Bxa7 {[%clk 0:00:19.3]} 41... Nd2+
{[%clk 0:00:58.9]} 42. Kc3 {[%clk 0:00:18]} 42... Nxe4+ {[%clk 0:00:44.2]} 43.
Kd4 {[%clk 0:00:18.9]} 43... Nd6 {[%clk 0:00:42.4]} 44. Kd5 {[%clk 0:00:18.2]}
44... Nf5 {[%clk 0:00:40]} 45. Bf2 {[%clk 0:00:16.3]} 45... g5 {[%clk
0:00:39.5]} 46. fxg5 {[%clk 0:00:17.2]} 46... fxg5 {[%clk 0:00:39.8]} 47. hxg5
{[%clk 0:00:18.1]} 47... Kg6 {[%clk 0:00:39.7]} 48. Kc5 {[%clk 0:00:17.4]} 48...
h4 {[%clk 0:00:39.9]} 49. Bxh4 {[%clk 0:00:14.3]} 49... Nxh4 {[%clk 0:00:40.1]}
50. Kxb5 {[%clk 0:00:15.2]} 50... Nf5 {[%clk 0:00:40.4]} 51. Kc5 {[%clk
0:00:14.4]} 51... Ne7 {[%clk 0:00:40.3]} 52. b5 {[%clk 0:00:14.5]} 52... Nc8
{[%clk 0:00:38.8]} 53. Kc6 {[%clk 0:00:13.6]} 53... Na7+ {[%clk 0:00:38.9]} 54.
Kb6 {[%clk 0:00:13.7]} 54... Nxb5 {[%clk 0:00:39.2]} 55. Kxb5 {[%clk 0:00:13.8]}
55... Kxg5 {[%clk 0:00:39.8]} 1/2-1/2